bitfinex-derivatives/quotes_BNBF0:USTF0_20260114
["timestamp","ask_amount","ask_price","bid_price","bid_amount"]
[1768375885362,3.6751808,939.01,936.34,0.18561584]
[1768375887561,3.6751808,939.0,936.34,0.18561584]
[1768375888662,3.6751808,939.01,936.34,0.18561584]
[1768375897971,3.6751808,939.0,936.34,0.18561584]
[1768375899167,3.6751808,938.99,936.34,0.18561584]
[1768375899972,3.6751808,938.92,936.34,0.18561584]
[1768375901572,0.18563861,938.28,936.34,0.18561584]
[1768375939001,0.18563861,938.28,936.38,1.5960632]
[1768375939397,0.18563861,938.28,936.37,1.5960632]
[1768375940401,0.18563861,938.28,936.36,1.5960632]
[1768375941301,0.18563861,938.28,936.35,1.5960632]
[1768375942497,0.18563861,938.28,936.34,1.78167904]
[1768375944196,0.18563861,938.28,936.34,0.18561584]
[1768375945398,0.18563861,938.28,936.42,1.5960632]
[1768375946400,0.18563861,938.28,936.4,1.5960632]
[1768375947604,0.18563861,938.28,936.39,1.5960632]
[1768375949501,0.18563861,938.28,936.38,1.5960632]
[1768375950402,0.18563861,938.28,936.37,1.5960632]
[1768375950601,0.18563861,938.28,936.38,1.5960632]
[1768375951406,0.18563861,938.28,936.37,1.5960632]
[1768375953106,0.18563861,938.28,936.36,1.5960632]
[1768375954302,0.18563861,938.28,936.34,0.18561584]
[1768376016359,0.18563861,938.28,936.36,1.5960632]
[1768376016556,0.18563861,938.28,936.41,1.5960632]
[1768376017360,0.18563861,938.28,936.39,1.5960632]
[1768376018160,0.18563861,938.28,936.38,1.5960632]
[1768376019158,0.18563861,938.28,936.37,1.5960632]
[1768376020264,0.18563861,938.28,936.36,1.5960632]
[1768376022267,0.18563861,938.28,936.35,1.5960632]
[1768376023367,0.18563861,938.28,936.34,1.78167904]
[1768376025267,0.18563861,938.28,936.34,0.18561584]
[1768376040584,0.18563861,938.28,936.56,1.0637275]
[1768376043686,0.18563861,938.28,936.55,1.0637275]
[1768376047090,0.18563861,938.28,936.56,1.0637275]
[1768376049197,0.18563861,938.28,936.57,1.0637275]
[1768376050399,0.18563861,938.28,936.53,1.0637275]
[1768376050598,0.18563861,938.28,936.5,1.0637275]
[1768376050897,0.18563861,938.28,936.44,1.0637275]
[1768376051095,0.18563861,938.28,936.45,1.0637275]
[1768376051297,0.18563861,938.28,936.43,1.0637275]
[1768376056100,0.18563861,938.28,936.44,1.0637275]
[1768376059404,0.18563861,938.28,936.45,1.0637275]
[1768376065107,0.18563861,938.28,936.44,1.0637275]
[1768376069708,0.18563861,938.28,936.47,1.0637275]
[1768376070612,0.18563861,938.28,936.44,1.0637275]
[1768376080418,0.18563861,938.28,936.57,1.0637275]
[1768376092126,0.18563861,938.28,936.76,1.0637275]
[1768376092424,0.18563861,938.28,936.74,1.0637275]
[1768376093329,0.18563861,938.28,936.73,1.0637275]
[1768376094224,0.18563861,938.28,936.72,1.0637275]
[1768376095426,0.18563861,938.28,936.71,1.0637275]
[1768376097230,0.18563861,938.28,936.7,1.0637275]
[1768376098330,0.18563861,938.28,936.69,1.0637275]
[1768376099929,0.18563861,938.28,936.87,1.0637275]
[1768376100128,0.18563861,938.28,936.89,1.0637275]
[1768376100331,0.18563861,938.28,936.9,1.0637275]
[1768376100930,0.18563861,938.28,936.91,1.0637275]
[1768376101229,0.18563861,938.28,936.92,1.0637275]
[1768376101432,0.18563861,938.28,936.93,1.0637275]
[1768376101630,0.0084542,939.22,937.1,1.0637275]
[1768376101833,0.18547536,938.42,937.1,1.0637275]
[1768376102132,3.6751808,939.74,937.06,1.0637275]
[1768376102533,0.18545609,938.42,937.06,1.0637275]
[1768376102731,0.00913837,939.36,937.06,1.0637275]
[1768376102928,0.18545609,938.42,937.06,1.0637275]
[1768376103127,0.18545609,938.42,937.03,1.0637275]
[1768376103330,3.6751808,939.78,937.03,1.0637275]
[1768376103529,0.18545609,938.42,937.03,1.0637275]
[1768376103733,0.01087212,939.36,937.03,1.0637275]
[1768376104034,0.18545757,938.42,937.03,1.0637275]
[1768376104235,3.6751808,939.8,937.0,1.0637275]
[1768376104730,0.012213,939.36,937.0,1.0637275]
[1768376105034,0.18545806,939.11,937.0,1.0637275]
[1768376105334,0.18545806,939.11,936.98,1.0637275]
[1768376106233,0.18545806,939.11,936.96,1.0637275]
[1768376107230,0.18545806,939.11,936.94,1.0637275]
[1768376108134,0.18545806,939.11,936.92,1.0637275]
[1768376109131,0.18545806,939.11,936.91,1.0637275]
[1768376110232,0.18545806,939.11,936.9,1.0637275]
[1768376111237,0.18545806,939.11,936.89,1.0637275]
[1768376111937,0.18545806,939.11,936.83,1.0637275]
[1768376112137,0.18545806,939.11,936.79,1.0637275]
[1768376112337,0.18545806,939.11,936.76,1.0637275]
[1768376112836,0.18545806,939.11,936.71,1.0637275]
[1768376113033,0.18545806,939.11,936.67,1.0637275]
[1768376113337,0.18545806,939.11,936.64,1.0637275]
[1768376115437,0.18545806,939.11,936.65,1.0637275]
[1768376118238,0.18545806,939.11,936.66,1.0637275]
[1768376120138,0.18545806,939.11,936.67,1.0637275]
[1768376121339,0.18545806,939.11,936.68,1.0637275]
[1768376122344,0.18545806,939.11,936.69,1.0637275]
[1768376123046,0.18545806,939.11,936.72,1.0637275]
[1768376123242,0.18545806,939.11,936.73,1.0637275]
[1768376124046,0.18545806,939.11,936.74,1.0637275]
[1768376124342,0.18545806,939.11,936.75,1.0637275]
[1768376125246,0.18545806,939.11,936.76,1.0637275]
[1768376125447,0.18545806,939.11,936.77,1.0637275]
[1768376126743,0.18545806,939.11,936.78,1.0637275]
[1768376127447,0.18545806,939.11,936.79,1.0637275]
[1768376128247,0.18545806,939.11,936.82,1.0637275]
[1768376128449,0.18545806,939.11,936.92,1.0637275]
[1768376129347,0.18545806,939.11,936.93,1.0637275]
[1768376130345,0.18545806,939.11,936.94,1.0637275]
[1768376130746,0.18545806,939.11,936.93,1.0637275]
[1768376131250,0.18545806,939.11,936.94,1.0637275]
[1768376132247,0.18545806,939.11,936.95,1.0637275]
[1768376133448,0.18545806,939.11,936.96,1.0637275]
[1768376134350,0.18545806,939.11,936.97,1.0637275]
[1768376134550,0.18545806,939.11,936.94,1.0637275]
[1768376134751,0.18545806,939.11,936.89,1.0637275]
[1768376135251,0.18545806,939.11,936.9,1.0637275]
[1768376136250,0.18545806,939.11,936.92,1.0637275]
[1768376136652,0.18545806,939.11,936.86,1.0637275]
[1768376137254,0.18545806,939.11,936.85,1.0637275]
[1768376137549,0.18545806,939.11,936.86,1.0637275]
[1768376138352,0.18545806,939.11,936.76,1.0637275]
[1768376140353,0.18545806,939.11,936.77,1.0637275]
[1768376141157,0.18545806,939.11,936.76,1.0637275]
[1768376141456,0.18545806,939.11,936.77,1.0637275]
[1768376142356,0.18545806,939.11,936.78,1.0637275]
[1768376144654,0.18545806,939.11,936.71,1.0637275]
[1768376146257,0.18545806,939.11,936.7,1.0637275]
[1768376152169,0.18545806,939.11,936.71,1.0637275]
[1768376155172,0.18545806,939.11,936.72,1.0637275]
[1768376155967,0.18545806,939.11,936.71,1.0637275]
[1768376156271,0.18545806,939.11,936.72,1.0637275]
[1768376160470,0.18545806,939.11,936.62,1.0637275]
[1768376160671,0.18545806,939.11,936.43,1.5960632]
[1768376161276,0.18545806,939.11,936.42,1.5960632]
[1768376162075,0.18545806,939.11,936.43,1.5960632]
[1768376162275,0.18545806,939.11,936.42,1.5960632]
[1768376162779,0.18545806,939.11,936.43,1.5960632]
[1768376162980,0.18545806,939.11,936.46,1.5960632]
[1768376163180,0.18545806,939.11,936.49,1.5960632]
[1768376170484,0.18545806,939.11,936.41,0.18558614]
[1768376178190,0.18545806,939.11,936.41,1.78164934]
[1768376179295,0.18545806,939.11,936.42,1.5960632]
[1768376180193,0.18545806,939.11,936.43,1.5960632]
[1768376180793,3.86063886,939.11,936.42,1.5960632]
[1768376180994,3.86063886,939.11,936.41,0.18558614]
[1768376181798,3.6751808,939.06,936.41,0.18558614]
[1768376183197,3.6751808,939.06,936.41,1.78164934]
[1768376183401,3.6751808,939.06,936.41,0.18558614]
[1768376183901,3.6751808,939.05,936.41,0.18558614]
[1768376184298,3.6751808,939.05,936.41,1.78164934]
[1768376184499,3.6751808,939.05,936.41,0.18558614]
[1768376184901,3.6751808,939.06,936.41,0.18558614]
[1768376185198,3.6751808,939.06,936.41,1.78164934]
[1768376185402,3.6751808,939.06,936.41,0.18558614]
[1768376186105,3.6751808,939.06,936.41,1.78164934]
[1768376186306,3.6751808,939.06,936.41,0.18558614]
[1768376187203,3.6751808,939.06,936.41,1.78164934]
[1768376187406,3.6751808,939.06,936.41,0.18558614]
[1768376188307,3.6751808,939.06,936.41,1.78164934]
[1768376189106,3.6751808,939.05,936.41,1.78164934]
[1768376193409,3.6751808,939.05,936.41,0.18558614]
[1768376194112,3.6751808,939.05,936.41,1.78164934]
[1768376194311,3.6751808,939.05,936.41,0.18558614]
[1768376194711,3.6751808,939.05,936.41,1.78164934]
[1768376201122,3.6751808,939.05,936.41,0.18558614]
[1768376201621,3.6751808,939.0,936.41,0.18558614]
[1768376202627,3.6751808,938.94,936.41,0.18558614]
[1768376203225,3.6751808,938.94,936.21,1.5960632]
[1768376203424,3.6751808,938.94,936.2,0.18562326]
[1768376203725,3.6751808,938.83,936.2,0.18562326]
[1768376204624,3.6751808,938.78,936.2,0.18562326]
[1768376205726,3.6751808,938.79,936.2,0.18562326]
[1768376206826,3.6751808,938.76,936.2,0.18562326]
[1768376207827,3.6751808,938.76,935.99,1.5960632]
[1768376208136,3.6751808,938.76,936.08,0.18565941]
[1768376208934,3.6751808,938.77,936.08,0.18565941]
[1768376209829,3.6751808,938.71,936.08,0.18565941]
[1768376210830,3.6751808,938.68,936.08,0.18565941]
[1768376212036,3.6751808,938.69,936.08,0.18565941]
[1768376213037,3.6751808,938.7,936.08,0.18565941]
[1768376215039,3.6751808,938.71,936.08,0.18565941]
[1768376216143,3.6751808,938.74,936.08,0.18565941]
[1768376217144,3.6751808,938.76,936.08,0.18565941]
[1768376218144,3.6751808,938.77,936.08,0.18565941]
[1768376219245,3.6751808,938.95,936.08,0.18565941]
[1768376224348,3.6751808,938.95,936.08,1.78172261]
[1768376224546,3.6751808,939.03,936.08,1.78172261]
[1768376224749,3.6751808,939.03,936.11,1.5960632]
[1768376225046,3.6751808,939.03,936.1,1.5960632]
[1768376225246,3.6751808,939.03,936.11,1.5960632]
[1768376225446,3.6751808,939.05,936.11,1.5960632]
[1768376227350,3.6751808,939.05,936.12,1.5960632]
[1768376228549,3.6751808,939.05,936.08,0.18565941]
[1768376228853,3.6751808,938.96,936.08,0.18565941]
[1768376229654,3.6751808,938.94,936.08,0.18565941]
[1768376230751,3.6751808,938.93,936.08,0.18565941]
[1768376231754,3.6751808,938.85,936.08,0.18565941]
[1768376233857,3.6751808,938.84,936.08,0.18565941]
[1768376236960,3.6751808,938.83,936.08,0.18565941]
[1768376239059,3.6751808,938.82,936.08,0.18565941]
[1768376241161,3.6751808,938.81,936.08,0.18565941]
[1768376242161,3.6751808,938.8,936.08,0.18565941]
[1768376243361,3.6751808,938.79,936.08,0.18565941]
[1768376245462,3.6751808,938.78,936.08,0.18565941]
[1768376246366,3.6751808,938.76,936.08,0.18565941]
[1768376247367,0.18545806,939.11,936.08,0.18565941]
[1768376247368,3.6751808,938.74,936.08,0.18565941]
[1768376248463,0.18545806,939.11,936.08,0.18565941]
[1768376248464,3.6751808,938.66,936.08,0.18565941]
[1768376249467,3.6751808,938.67,936.08,0.18565941]
[1768376256870,3.6751808,938.63,935.89,1.5960632]
[1768376257068,3.6751808,938.63,935.92,0.18568071]
[1768376257873,3.6751808,938.54,935.92,0.18568071]
[1768376258770,3.6751808,938.54,935.7,1.5960632]
[1768376259073,3.6751808,938.42,935.74,0.18571291]
[1768376261073,3.6751808,938.43,935.74,0.18571291]
[1768376261975,3.6751808,938.45,935.74,0.18571291]
[1768376263072,3.6751808,938.46,935.74,0.18571291]
[1768376264075,3.6751808,938.56,935.74,0.18571291]
[1768376265176,3.6751808,938.55,935.74,0.18571291]
[1768376267282,3.6751808,938.56,935.74,0.18571291]
[1768376270384,3.6751808,938.55,935.74,0.18571291]
[1768376272480,3.6751808,938.54,935.74,0.18571291]
[1768376272986,3.6751808,938.54,935.75,1.5960632]
[1768376273286,3.6751808,938.54,935.77,1.5960632]
[1768376273582,3.6751808,938.6,935.77,1.5960632]
[1768376274282,3.6751808,938.6,935.78,1.5960632]
[1768376275684,3.6751808,938.59,935.78,1.5960632]
[1768376278390,3.6751808,938.59,935.79,1.5960632]
[1768376279796,3.6751808,938.58,935.79,1.5960632]
[1768376280893,3.6751808,938.58,935.78,1.5960632]
[1768376281800,3.6751808,938.57,935.78,1.5960632]
[1768376282298,3.6751808,938.57,935.79,1.5960632]
[1768376283095,3.6751808,938.57,935.75,1.5960632]
[1768376283903,3.6751808,938.53,935.75,1.5960632]
[1768376284801,3.6751808,938.53,935.74,1.78177611]
[1768376284999,3.6751808,938.51,935.74,1.78177611]
[1768376287000,3.6751808,938.5,935.74,1.78177611]
[1768376287199,3.6751808,938.5,935.75,1.5960632]
[1768376289199,3.6751808,938.49,935.75,1.5960632]
[1768376289394,3.6751808,938.49,935.76,1.5960632]
[1768376290300,3.6751808,938.49,935.77,1.5960632]
[1768376291199,3.6751808,938.48,935.77,1.5960632]
[1768376292301,3.6751808,938.47,935.78,1.5960632]
[1768376293302,3.6751808,938.46,935.79,1.5960632]
[1768376296298,3.6751808,938.46,935.8,1.5960632]
[1768376296501,3.6751808,938.45,935.8,1.5960632]
[1768376298200,3.6751808,938.45,935.81,1.5960632]
[1768376298602,3.6751808,938.44,935.81,1.5960632]
[1768376299302,3.6751808,938.44,935.82,1.5960632]
[1768376299602,3.6751808,938.43,935.82,1.5960632]
[1768376300405,3.6751808,938.43,935.83,1.5960632]
[1768376300605,3.6751808,938.42,935.83,1.5960632]
[1768376301404,3.6751808,938.42,935.84,1.5960632]
[1768376301703,3.6751808,938.41,935.84,1.5960632]
[1768376305406,0.18569706,937.77,935.84,1.5960632]
[1768376306307,0.18569706,937.77,935.85,1.5960632]
[1768376307112,0.18569706,937.77,935.86,1.5960632]
[1768376308113,0.18569706,937.77,935.93,1.5960632]
[1768376308314,0.18569706,937.77,935.95,1.5960632]
[1768376309411,0.18569706,937.77,935.94,1.5960632]
[1768376315614,0.18569706,937.77,935.93,1.5960632]
[1768376326420,0.18569706,937.77,935.92,1.5960632]
[1768376334121,0.18569706,937.77,935.9,1.5960632]
[1768376337624,0.18569706,937.77,935.91,1.5960632]
[1768376345728,0.18569706,937.77,935.74,0.18571291]
[1768376349233,0.18569706,937.77,935.92,1.6009794]
[1768376349429,0.18569706,937.77,935.93,1.6009794]
[1768376351532,0.18569706,937.77,935.94,1.6009794]
[1768376363142,0.18569706,937.77,935.93,1.6009794]
[1768376363743,0.18569706,937.77,935.89,1.6009794]
[1768376364143,0.18569706,937.77,935.88,1.6009794]
[1768376364338,0.18569706,937.77,935.87,1.6009794]
[1768376365240,0.18569706,937.77,935.86,1.6009794]
[1768376367140,0.18569706,937.77,935.84,1.6009794]
[1768376369142,0.18569706,937.77,935.83,1.6009794]
[1768376371245,0.18569706,937.77,935.82,1.6009794]
[1768376376349,0.18569706,937.77,935.81,1.6009794]
[1768376378546,0.18569706,937.77,935.77,1.6009794]
[1768376379346,0.18569706,937.77,935.75,1.6009794]
[1768376381154,0.18569706,937.77,935.74,1.78669231]
[1768376386252,0.18569706,937.77,935.74,0.18571291]
[1768376388959,0.18569706,937.77,935.74,1.78669231]
[1768376390161,0.18569706,937.77,935.75,1.6009794]
[1768376390661,0.7573948,937.76,935.75,1.6009794]
[1768376390960,0.7573948,937.75,935.75,1.6009794]
[1768376391260,0.7573948,937.74,935.75,1.6009794]
[1768376391461,0.7573948,937.73,935.75,1.6009794]
[1768376391662,0.7573948,937.72,935.75,1.6009794]
[1768376391861,0.7573948,937.71,935.75,1.6009794]
[1768376392063,0.7573948,937.7,935.75,1.6009794]
[1768376392263,0.18569706,937.77,935.75,1.6009794]
[1768376392264,0.7573948,937.69,935.75,1.6009794]
[1768376392462,0.7573948,937.68,935.75,1.6009794]
[1768376392666,0.7573948,937.67,935.75,1.6009794]
[1768376392865,0.7573948,937.66,935.75,1.6009794]
[1768376393165,0.7573948,937.65,935.75,1.6009794]
[1768376393365,0.7573948,937.64,935.75,1.6009794]
[1768376393568,0.7573948,937.63,935.75,1.6009794]
[1768376393864,0.7573948,937.62,935.75,1.6009794]
[1768376394164,0.7573948,937.61,935.75,1.6009794]
[1768376394369,0.7573948,937.6,935.75,1.6009794]
[1768376394565,0.7573948,937.59,935.75,1.6009794]
[1768376394767,0.7573948,937.58,935.75,1.6009794]
[1768376394964,0.7573948,937.57,935.75,1.6009794]
[1768376395168,0.75743429,937.56,935.75,1.6009794]
[1768376395363,0.75743429,937.55,935.75,1.6009794]
[1768376395667,0.75743429,937.54,935.75,1.6009794]
[1768376395864,0.75743429,937.53,935.75,1.6009794]
[1768376396067,0.75743429,937.52,935.75,1.6009794]
[1768376396364,0.75743429,937.51,935.75,1.6009794]
[1768376396567,0.75743429,937.5,935.75,1.6009794]
[1768376396763,0.75743429,937.49,935.75,1.6009794]
[1768376396966,0.75743429,937.48,935.75,1.6009794]
[1768376397166,0.75743429,937.47,935.75,1.6009794]
[1768376397370,0.75743429,937.46,935.75,1.6009794]
[1768376397568,0.75743429,937.45,935.75,1.6009794]
[1768376397771,0.75743429,937.44,935.75,1.6009794]
[1768376398068,0.75743429,937.43,935.75,1.6009794]
[1768376398269,0.75743429,937.42,935.75,1.6009794]
[1768376398465,0.75743429,937.41,935.75,1.6009794]
[1768376398667,0.75743429,937.4,935.75,1.6009794]
[1768376398867,0.75743429,937.39,935.75,1.6009794]
[1768376399070,0.75743429,937.38,935.75,1.6009794]
[1768376399272,0.75743429,937.37,935.75,1.6009794]
[1768376399569,0.75743429,937.36,935.75,1.6009794]
[1768376399872,0.75743429,937.35,935.75,1.6009794]
[1768376400068,0.75743429,937.34,935.75,1.6009794]
[1768376400270,0.75743429,937.33,935.76,1.6009794]
[1768376400469,0.75760429,937.32,935.76,1.6009794]
[1768376400670,0.75760429,937.31,935.76,1.6009794]
[1768376400868,0.75760429,937.3,935.76,1.6009794]
[1768376401069,0.75760429,937.29,935.76,1.6009794]
[1768376401272,0.75760429,937.28,935.76,1.6009794]
[1768376401472,0.75760429,937.27,935.76,1.6009794]
[1768376401671,0.75760429,937.26,935.76,1.6009794]
[1768376401871,0.75760429,937.25,935.76,1.6009794]
[1768376402070,0.75760429,937.24,935.76,1.6009794]
[1768376402370,0.75760429,937.23,935.76,1.6009794]
[1768376402574,0.75760429,937.22,935.76,1.6009794]
[1768376402775,0.75760429,937.21,935.76,1.6009794]
[1768376402972,0.75760429,937.2,935.76,1.6009794]
[1768376403271,0.75760429,937.19,935.77,1.6009794]
[1768376403572,0.75760429,937.18,935.77,1.6009794]
[1768376403774,0.18569706,937.77,935.77,1.6009794]
[1768376403775,0.75760429,937.17,935.77,1.6009794]
[1768376403974,0.75760429,937.16,935.77,1.6009794]
[1768376404175,0.75760429,937.15,935.77,1.6009794]
[1768376404372,0.75760429,937.14,935.77,1.6009794]
[1768376404575,0.75760429,937.13,935.77,1.6009794]
[1768376404772,0.75760429,937.12,935.77,1.6009794]
[1768376404977,0.75760429,937.11,935.77,1.6009794]
[1768376405173,0.75760429,937.1,935.77,1.6009794]
[1768376405379,0.75760429,937.09,935.77,1.6009794]
[1768376405675,0.75760429,937.08,935.77,1.6009794]
[1768376405874,0.75760429,937.07,935.77,1.6009794]
[1768376406076,0.75760429,937.06,935.77,1.6009794]
[1768376406280,0.75760429,937.05,935.78,1.6009794]
[1768376406478,0.75760429,937.04,935.78,1.6009794]
[1768376406682,0.75760429,937.03,935.78,1.6009794]
[1768376406882,0.75760429,937.02,935.78,1.6009794]
[1768376407081,0.75760429,937.01,935.78,1.6009794]
[1768376407381,0.75760429,937.0,935.78,1.6009794]
[1768376407579,0.75760429,936.99,935.78,1.6009794]
[1768376407779,0.75760429,936.98,935.78,1.6009794]
[1768376407979,0.75760429,936.97,935.78,1.6009794]
[1768376408181,0.75760429,936.96,935.79,1.6009794]
[1768376408380,0.75760429,936.95,935.79,1.6009794]
[1768376408582,0.75821734,936.94,935.79,1.6009794]
[1768376408778,0.75821734,936.93,935.79,1.6009794]
[1768376408983,0.75821734,936.92,935.79,1.6009794]
[1768376409180,0.75821734,936.91,935.79,1.6009794]
[1768376409483,0.75821734,936.9,935.78,1.6009794]
[1768376409683,0.75821734,936.89,935.74,0.18571291]
[1768376409883,0.75821734,936.88,935.74,0.18571291]
[1768376410084,0.75821734,936.87,935.74,0.18571291]
[1768376410285,0.75821734,936.86,935.74,0.18571291]
[1768376410584,0.75821734,936.85,935.74,0.18571291]
[1768376410784,0.75821734,936.84,935.74,0.18571291]
[1768376410981,0.75821734,936.83,935.74,0.18571291]
[1768376411182,0.75821734,936.82,935.74,0.18571291]
[1768376411384,0.75821734,936.81,935.74,0.18571291]
[1768376411684,0.75821734,936.8,935.74,0.18571291]
[1768376411879,0.75821734,936.79,935.74,0.18571291]
[1768376412084,0.75821734,936.78,935.74,0.18571291]
[1768376412283,0.75821734,936.77,935.74,0.18571291]
[1768376412480,0.75821734,936.76,935.74,0.18571291]
[1768376412680,0.75821734,936.75,935.78,1.601398]
[1768376412984,0.75821734,936.74,935.78,1.601398]
[1768376413183,0.75821734,936.73,935.78,1.601398]
[1768376413378,0.75821734,936.72,935.78,1.601398]
[1768376413581,0.75821734,936.71,935.78,1.601398]
[1768376413780,0.75821734,936.7,935.78,1.601398]
[1768376413980,0.75821734,936.69,935.78,1.601398]
[1768376414184,0.75821734,936.68,935.78,1.601398]
[1768376414385,0.75821734,936.67,935.74,0.18571291]
[1768376414584,0.75821734,936.66,935.74,0.18571291]
[1768376414786,0.75821734,936.65,935.74,0.18571291]
[1768376414985,0.75821734,936.64,935.74,0.18571291]
[1768376415183,0.75821734,936.63,935.74,0.18571291]
[1768376415486,0.75821734,936.62,935.74,0.18571291]
[1768376415687,0.75821734,936.61,935.74,0.18571291]
[1768376415887,0.75821734,936.6,935.74,0.18571291]
[1768376416184,0.75821734,936.59,935.74,0.18571291]
[1768376416387,0.75821734,936.58,935.74,0.18571291]
[1768376416686,0.75821734,936.57,935.74,0.18571291]
[1768376416986,0.75821734,936.56,935.74,0.18571291]
[1768376417185,0.75821734,936.55,935.74,0.18571291]
[1768376417487,0.75821734,936.54,935.74,0.18571291]
[1768376417686,0.75821734,936.53,935.74,0.18571291]
[1768376417888,0.75821734,936.52,935.74,0.18571291]
[1768376418090,0.75821734,936.51,935.74,0.18571291]
[1768376418285,0.75821734,936.5,935.74,0.18571291]
[1768376418485,0.75821734,936.49,935.74,0.18571291]
[1768376418785,0.75821734,936.48,935.74,0.18571291]
[1768376418988,0.75821734,936.47,935.79,1.6016688]
[1768376419190,0.75821734,936.46,935.79,1.6016688]
[1768376419386,0.75821734,936.45,935.79,1.6016688]
[1768376419590,0.75821734,936.44,935.79,1.6016688]
[1768376419790,0.75821734,936.43,935.79,1.6016688]
[1768376419990,0.75821734,936.42,935.79,1.6016688]
[1768376420191,0.75821734,936.41,935.79,1.6016688]
[1768376420490,0.75821734,936.4,935.79,1.6016688]
[1768376420686,0.75821734,936.39,935.79,1.6016688]
[1768376420891,0.75821734,936.38,935.79,1.6016688]
[1768376421087,0.75821734,936.37,935.79,1.6016688]
[1768376421286,0.75821734,936.36,935.79,1.6016688]
[1768376421493,0.75821734,936.35,935.79,1.6016688]
[1768376421689,0.75821734,936.34,935.79,1.6016688]
[1768376421989,0.75821734,936.33,935.79,1.6016688]
[1768376422191,0.75821734,936.32,935.79,1.6016688]
[1768376422389,0.75821734,936.31,935.79,1.6016688]
[1768376422590,0.75821734,936.3,935.79,1.6016688]
[1768376422791,0.75821734,936.29,935.79,1.6016688]
[1768376423088,0.75821734,936.28,935.79,1.6016688]
[1768376423289,0.75821734,936.27,935.79,1.6016688]
[1768376423494,0.75990551,936.26,935.79,1.6016688]
[1768376423792,0.75990551,936.25,935.79,1.6016688]
[1768376423994,0.75990551,936.24,935.81,1.6016688]
[1768376424193,0.75990551,936.23,935.81,1.6016688]
[1768376424491,0.01237664,937.2,935.81,1.6016688]
[1768376424492,0.75990551,936.22,935.81,1.6016688]
[1768376424692,0.75990551,936.21,935.81,1.6016688]
[1768376424893,0.75990551,936.2,935.81,1.6016688]
[1768376425193,0.75990551,936.19,935.81,1.6016688]
[1768376425394,0.75990551,936.18,935.81,1.6016688]
[1768376425696,0.75990551,936.17,935.81,1.6016688]
[1768376425893,0.75990551,936.16,935.81,1.6016688]
[1768376426095,0.75990551,936.15,935.81,1.6016688]
[1768376426296,0.75990551,936.14,935.81,1.6016688]
[1768376426496,0.75990551,936.13,935.81,1.6016688]
[1768376426697,0.75990551,936.12,935.81,1.6016688]
[1768376426895,0.18569706,937.77,935.81,1.6016688]
[1768376427198,0.01003851,937.07,935.81,1.6016688]
[1768376427497,0.75991839,937.06,935.81,1.6016688]
[1768376427696,0.75991839,937.05,935.81,1.6016688]
[1768376427898,0.75991839,937.04,935.81,1.6016688]
[1768376428092,0.75991839,937.03,935.81,1.6016688]
[1768376428297,0.75991839,937.02,935.81,1.6016688]
[1768376428497,0.75991839,937.01,935.81,1.6016688]
[1768376428694,0.75991839,937.0,935.81,1.6016688]
[1768376428995,0.75991839,936.99,935.81,1.6016688]
[1768376429198,0.75991839,936.98,935.81,1.6016688]
[1768376429398,0.75991839,936.97,935.81,1.6016688]
[1768376429597,0.75991839,936.96,935.81,1.6016688]
[1768376429797,0.75991839,936.95,935.81,1.6016688]
[1768376430094,0.75991839,936.94,935.81,1.6016688]
[1768376430298,0.75991839,936.93,935.81,1.6016688]
[1768376430498,0.75991839,936.92,935.81,1.6016688]
[1768376430698,0.75991839,936.91,935.81,1.6016688]
[1768376430896,0.75991839,936.9,935.81,1.6016688]
[1768376431100,0.75991839,936.89,935.81,1.6016688]
[1768376431399,0.75991839,936.88,935.81,1.6016688]
[1768376431595,0.75991839,936.87,935.81,1.6016688]
[1768376431896,0.75991839,936.86,935.81,1.6016688]
[1768376432196,0.75991839,936.85,935.81,1.6016688]
[1768376432400,0.75991839,936.84,935.81,1.6016688]
[1768376432600,0.75991839,936.83,935.81,1.6016688]
[1768376432900,0.75991839,936.82,935.81,1.6016688]
[1768376433200,0.75991839,936.81,935.81,1.6016688]
[1768376433398,0.75991839,936.8,935.81,1.6016688]
[1768376433698,0.75991839,936.79,935.81,1.6016688]
[1768376433899,0.75991839,936.78,935.81,1.6016688]
[1768376434097,0.75991839,936.77,935.81,1.6016688]
[1768376434296,0.75991839,936.76,935.81,1.6016688]
[1768376434501,0.75991839,936.75,935.81,1.6016688]
[1768376434798,0.75991839,936.74,935.81,1.6016688]
[1768376434999,0.75991839,936.73,935.81,1.6016688]
[1768376435203,0.75991839,936.72,935.81,1.6016688]
[1768376435403,0.75991839,936.71,935.81,1.6016688]
[1768376435603,0.75991839,936.7,935.81,1.6016688]
[1768376435804,0.75991839,936.69,935.81,1.6016688]
[1768376436099,0.75991839,936.68,935.81,1.6016688]
[1768376436305,0.75991839,936.67,935.81,1.6016688]
[1768376436504,0.75991839,936.66,935.81,1.6016688]
[1768376436701,0.18569706,937.77,935.74,0.18571291]
[1768376436702,0.75991839,936.65,935.74,0.18571291]
[1768376436905,0.75991839,936.64,935.56,1.6016688]
[1768376437101,0.75991839,936.63,935.61,0.18582398]
[1768376437405,0.75991839,936.62,935.41,1.6016688]
[1768376437702,0.75991839,936.61,935.41,0.18585772]
[1768376437902,0.75991839,936.6,935.41,0.18585772]
[1768376438205,0.75991839,936.59,935.41,0.18585772]
[1768376438505,0.75991839,936.58,935.41,0.18585772]
[1768376438703,0.75991839,936.57,935.32,1.6016688]